[Event "January 2 Late 2024"]
[Site "https://www.chess.com"]
[Date "2024.01.02"]
[Round "5"]
[White "Song, Ethan"]
[Black "Delorme, Axel"]
[Result "1-0"]
[Board "58"]
[TimeControl "180+1"]
[WhiteFideId "62900412"]
[BlackFideId "632023"]
[WhiteElo "2760"]
[BlackElo "2491"]
[WhiteTeam "CAN"]
[BlackTeam "FRA"]
[WhiteClock "0:00:49"]
[BlackClock "0:00:14"]

1. e4 {[%clk 0:03:00]}  c5 {[%clk 0:02:58]} 2. Nf3 {[%clk 0:03:01]}  d6 {[%clk 0:02:58]} 3. d4 {[%clk 0:03:00]}  cxd4 {[%clk 0:02:59]} 4. Nxd4 {[%clk 0:03:01]}  Nf6 {[%clk 0:03:00]} 5. Nc3 {[%clk 0:03:01]}  a6 {[%clk 0:03:01]} 6. f3 {[%clk 0:03:02]}  e5 {[%clk 0:03:00]} 7. Nb3 {[%clk 0:03:03]}  Be6 {[%clk 0:03:01]} 8. Be3 {[%clk 0:03:03]}  Be7 {[%clk 0:03:02]} 9. g4 {[%clk 0:03:02]}  b5 {[%clk 0:03:01]} 10. Qd2 {[%clk 0:03:01]}  O-O {[%clk 0:02:57]} 11. O-O-O {[%clk 0:03:00]}  Nbd7 {[%clk 0:02:56]} 12. h4 {[%clk 0:02:59]}  b4 {[%clk 0:02:56]} 13. Ne2 {[%clk 0:02:58]}  a5 {[%clk 0:02:54]} 14. Kb1 {[%clk 0:02:57]}  Nb6 {[%clk 0:02:48]} 15. Ng3 {[%clk 0:02:56]}  a4 {[%clk 0:02:42]} 16. Nc1 {[%clk 0:02:54]}  b3 {[%clk 0:02:38]} 17. cxb3 {[%clk 0:02:53]}  axb3 {[%clk 0:02:36]} 18. a3 {[%clk 0:02:53]}  Nc4 {[%clk 0:02:33]} 19. Bxc4 {[%clk 0:02:52]}  Bxc4 {[%clk 0:02:34]} 20. g5 {[%clk 0:02:51]}  Nd7 {[%clk 0:02:12]} 21. Nf5 {[%clk 0:02:50]}  Ra6 {[%clk 0:02:13]} 22. h5 {[%clk 0:02:46]}  Re8 {[%clk 0:01:53]} 23. Rhg1 {[%clk 0:02:42]}  g6 {[%clk 0:01:46]} 24. hxg6 {[%clk 0:02:40]}  fxg6 {[%clk 0:01:44]} 25. Nh6+ {[%clk 0:02:40]}  Kg7 {[%clk 0:01:41]} 26. f4 {[%clk 0:02:40]}  exf4 {[%clk 0:01:33]} 27. Bxf4 {[%clk 0:02:35]}  Ne5 {[%clk 0:01:32]} 28. Qc3 {[%clk 0:02:25]}  Qc7 {[%clk 0:01:23]} 29. Nxb3 {[%clk 0:02:23]}  Rc6 {[%clk 0:01:17]} 30. Ka1 {[%clk 0:01:53]}  Be2 {[%clk 0:01:11]} 31. Qd4 {[%clk 0:01:31]}  Bxd1 {[%clk 0:01:09]} 32. Rxd1 {[%clk 0:01:32]}  Bf8 {[%clk 0:00:46]} 33. Ng4 {[%clk 0:01:07]}  Qf7 {[%clk 0:00:24]} 34. Bxe5+ {[%clk 0:01:02]}  dxe5 {[%clk 0:00:24]} 35. Nxe5 {[%clk 0:01:02]}  Qxb3 {[%clk 0:00:18]} 36. Nxc6+ {[%clk 0:01:00]}  Kg8 {[%clk 0:00:18]} 37. Qd5+ {[%clk 0:00:58]}  Qxd5 {[%clk 0:00:18]} 38. exd5 {[%clk 0:00:59]}  Bd6 {[%clk 0:00:17]} 39. b4 {[%clk 0:00:57]}  Re2 {[%clk 0:00:17]} 40. b5 {[%clk 0:00:56]}  Bxa3 {[%clk 0:00:15]} 41. d6 {[%clk 0:00:48]}  Bxd6 {[%clk 0:00:14]} 42. Rxd6 {[%clk 0:00:49]}  Rg2 {[%clk 0:00:12]} 43. b6 {[%clk 0:00:48]}  Rxg5 {[%clk 0:00:13]} 44. b7 {[%clk 0:00:49]}  Rb5 {[%clk 0:00:14]} 45. b8=R+ {[%clk 0:00:49]}  Rxb8 {[%clk 0:00:15]} 46. Nxb8 {[%clk 0:00:50]}  h5 {[%clk 0:00:14]} 47. Rxg6+ {[%clk 0:00:49]} 1-0

[Event "January 2 Late 2024"]
[Site "https://www.chess.com"]
[Date "2024.01.02"]
[Round "5"]
[White "Bochnicka, Vladimir"]
[Black "Lie, Kjetil A."]
[Result "0-1"]
[Board "59"]
[TimeControl "180+1"]
[WhiteFideId "14943450"]
[BlackFideId "1501984"]
[WhiteElo "2489"]
[BlackElo "2754"]
[WhiteTeam "SVK"]
[BlackTeam "NOR"]
[WhiteClock "0:00:00"]
[BlackClock "0:00:14"]

1. e4 {[%clk 0:03:00]}  c5 {[%clk 0:02:58]} 2. Nf3 {[%clk 0:03:01]}  e6 {[%clk 0:02:59]} 3. g3 {[%clk 0:03:01]}  Nc6 {[%clk 0:02:58]} 4. Bg2 {[%clk 0:03:01]}  Qc7 {[%clk 0:02:58]} 5. O-O {[%clk 0:03:00]}  a6 {[%clk 0:02:58]} 6. c3 {[%clk 0:02:57]}  Nf6 {[%clk 0:02:58]} 7. Re1 {[%clk 0:02:57]}  d5 {[%clk 0:02:52]} 8. exd5 {[%clk 0:02:34]}  Nxd5 {[%clk 0:02:51]} 9. d4 {[%clk 0:02:34]}  cxd4 {[%clk 0:02:30]} 10. Nxd4 {[%clk 0:02:34]}  Be7 {[%clk 0:02:11]} 11. Bxd5 {[%clk 0:02:06]}  exd5 {[%clk 0:02:11]} 12. Bf4 {[%clk 0:02:06]}  Qd8 {[%clk 0:01:56]} 13. Bg5 {[%clk 0:01:46]}  f6 {[%clk 0:01:56]} 14. Bf4 {[%clk 0:01:45]}  Nxd4 {[%clk 0:01:53]} 15. Qxd4 {[%clk 0:01:40]}  O-O {[%clk 0:01:52]} 16. Nd2 {[%clk 0:01:39]}  b6 {[%clk 0:01:39]} 17. Rad1 {[%clk 0:01:23]}  Bc5 {[%clk 0:01:35]} 18. Qd3 {[%clk 0:01:18]}  Bg4 {[%clk 0:01:32]} 19. Nf3 {[%clk 0:01:07]}  Qd7 {[%clk 0:01:30]} 20. Kg2 {[%clk 0:01:04]}  Rad8 {[%clk 0:01:21]} 21. Rd2 {[%clk 0:00:54]}  Bh3+ {[%clk 0:01:08]} 22. Kg1 {[%clk 0:00:53]}  Bf5 {[%clk 0:01:08]} 23. Qf1 {[%clk 0:00:29]}  Rfe8 {[%clk 0:01:02]} 24. b4 {[%clk 0:00:27]}  Bf8 {[%clk 0:01:01]} 25. Nd4 {[%clk 0:00:28]}  Be4 {[%clk 0:01:00]} 26. f3 {[%clk 0:00:26]}  Bg6 {[%clk 0:01:00]} 27. Rxe8 {[%clk 0:00:23]}  Rxe8 {[%clk 0:00:58]} 28. Qxa6 {[%clk 0:00:23]}  Bh5 {[%clk 0:00:34]} 29. Kg2 {[%clk 0:00:22]}  g5 {[%clk 0:00:34]} 30. g4 {[%clk 0:00:12]}  Bxg4 {[%clk 0:00:34]} 31. Bg3 {[%clk 0:00:10]}  Bh3+ {[%clk 0:00:33]} 32. Kf2 {[%clk 0:00:10]}  f5 {[%clk 0:00:26]} 33. f4 {[%clk 0:00:04]}  Bd6 {[%clk 0:00:26]} 34. Qb5 {[%clk 0:00:02]}  Qf7 {[%clk 0:00:22]} 35. Qxb6 {[%clk 0:00:02]}  Bc7 {[%clk 0:00:18]} 36. Qc6 {[%clk 0:00:01]}  gxf4 {[%clk 0:00:19]} 37. Bh4 {[%clk 0:00:02]}  Qh5 {[%clk 0:00:16]} 38. Qf6 {[%clk 0:00:02]}  Be5 {[%clk 0:00:14]} 39. Ne6 {[%clk 0:00:00]}  Bxf6 {[%clk 0:00:14]} 0-1

[Event "January 2 Late 2024"]
[Site "https://www.chess.com"]
[Date "2024.01.02"]
[Round "5"]
[White "Flores, Diego"]
[Black "Sukandar, Irine Kharisma"]
[Result "1/2-1/2"]
[Board "61"]
[TimeControl "180+1"]
[WhiteFideId "108049"]
[BlackFideId "7101937"]
[WhiteElo "2748"]
[BlackElo "2469"]
[WhiteTeam "ARG"]
[BlackTeam "INA"]
[WhiteClock "0:00:07"]
[BlackClock "0:00:09"]

1. c4 {[%clk 0:03:00]}  c5 {[%clk 0:02:57]} 2. Nc3 {[%clk 0:03:00]}  Nf6 {[%clk 0:02:57]} 3. g3 {[%clk 0:02:59]}  d5 {[%clk 0:02:57]} 4. cxd5 {[%clk 0:02:59]}  Nxd5 {[%clk 0:02:58]} 5. Bg2 {[%clk 0:03:00]}  Nc7 {[%clk 0:02:58]} 6. Nf3 {[%clk 0:02:59]}  Nc6 {[%clk 0:02:58]} 7. a3 {[%clk 0:02:59]}  Rb8 {[%clk 0:02:55]} 8. Rb1 {[%clk 0:02:26]}  Bf5 {[%clk 0:02:37]} 9. d3 {[%clk 0:02:22]}  g6 {[%clk 0:02:37]} 10. b4 {[%clk 0:01:36]}  Bg7 {[%clk 0:02:36]} 11. Bd2 {[%clk 0:01:21]}  cxb4 {[%clk 0:02:30]} 12. axb4 {[%clk 0:01:21]}  O-O {[%clk 0:02:30]} 13. O-O {[%clk 0:01:18]}  a6 {[%clk 0:02:08]} 14. b5 {[%clk 0:01:13]}  axb5 {[%clk 0:02:08]} 15. Nxb5 {[%clk 0:01:13]}  Nxb5 {[%clk 0:02:08]} 16. Rxb5 {[%clk 0:01:13]}  Qd7 {[%clk 0:02:08]} 17. Qb3 {[%clk 0:01:12]}  Bg4 {[%clk 0:02:00]} 18. Be3 {[%clk 0:01:08]}  Be6 {[%clk 0:01:51]} 19. Qb1 {[%clk 0:00:56]}  Bh3 {[%clk 0:01:45]} 20. Bxh3 {[%clk 0:00:55]}  Qxh3 {[%clk 0:01:45]} 21. Rxb7 {[%clk 0:00:56]}  Ra8 {[%clk 0:01:37]} 22. Rc1 {[%clk 0:00:53]}  Rfc8 {[%clk 0:01:12]} 23. Qb5 {[%clk 0:00:26]}  h6 {[%clk 0:01:01]} 24. Ne1 {[%clk 0:00:16]}  Ne5 {[%clk 0:00:59]} 25. Rxc8+ {[%clk 0:00:15]}  Rxc8 {[%clk 0:00:59]} 26. f3 {[%clk 0:00:15]}  Kh7 {[%clk 0:00:52]} 27. Rxe7 {[%clk 0:00:14]}  Qh5 {[%clk 0:00:39]} 28. g4 {[%clk 0:00:11]}  Nxf3+ {[%clk 0:00:39]} 29. Nxf3 {[%clk 0:00:10]}  Qxb5 {[%clk 0:00:39]} 30. Rxf7 {[%clk 0:00:10]}  Qe8 {[%clk 0:00:35]} 31. Rxg7+ {[%clk 0:00:04]}  Kxg7 {[%clk 0:00:34]} 32. Kf2 {[%clk 0:00:05]}  Rd8 {[%clk 0:00:30]} 33. h3 {[%clk 0:00:05]}  Rd7 {[%clk 0:00:30]} 34. Bf4 {[%clk 0:00:05]}  g5 {[%clk 0:00:27]} 35. Be5+ {[%clk 0:00:06]}  Kh7 {[%clk 0:00:28]} 36. d4 {[%clk 0:00:06]}  Rf7 {[%clk 0:00:28]} 37. Kg3 {[%clk 0:00:06]}  Qb5 {[%clk 0:00:28]} 38. Kf2 {[%clk 0:00:03]}  Qd5 {[%clk 0:00:27]} 39. Ke3 {[%clk 0:00:03]}  Rb7 {[%clk 0:00:25]} 40. h4 {[%clk 0:00:03]}  Rb3+ {[%clk 0:00:25]} 41. Kf2 {[%clk 0:00:03]}  Qe4 {[%clk 0:00:26]} 42. hxg5 {[%clk 0:00:03]}  Qxe2+ {[%clk 0:00:26]} 43. Kxe2 {[%clk 0:00:03]}  hxg5 {[%clk 0:00:22]} 44. Nxg5+ {[%clk 0:00:03]}  Kg6 {[%clk 0:00:22]} 45. Nf3 {[%clk 0:00:04]}  Ra3 {[%clk 0:00:15]} 46. Kf2 {[%clk 0:00:05]}  Rd3 {[%clk 0:00:15]} 47. Kg3 {[%clk 0:00:05]}  Rd1 {[%clk 0:00:15]} 48. Kf4 {[%clk 0:00:06]}  Rd3 {[%clk 0:00:15]} 49. Nh4+ {[%clk 0:00:06]}  Kf7 {[%clk 0:00:15]} 50. g5 {[%clk 0:00:07]}  Rd1 {[%clk 0:00:14]} 51. g6+ {[%clk 0:00:07]}  Kg8 {[%clk 0:00:14]} 52. Nf3 {[%clk 0:00:07]}  Rd3 {[%clk 0:00:14]} 53. Ke4 {[%clk 0:00:07]}  Rd1 {[%clk 0:00:13]} 54. d5 {[%clk 0:00:08]}  Kf8 {[%clk 0:00:10]} 55. Nd4 {[%clk 0:00:07]}  Rg1 {[%clk 0:00:08]} 56. Kf5 {[%clk 0:00:07]}  Ke8 {[%clk 0:00:08]} 57. d6 {[%clk 0:00:06]}  Kd7 {[%clk 0:00:08]} 58. g7 {[%clk 0:00:07]}  Rxg7 {[%clk 0:00:07]} 59. Bxg7 {[%clk 0:00:07]}  Kxd6 {[%clk 0:00:08]} 60. Be5+ {[%clk 0:00:08]}  Kd5 {[%clk 0:00:08]} 61. Ne6 {[%clk 0:00:08]}  Kc6 {[%clk 0:00:08]} 62. Ke4 {[%clk 0:00:09]}  Kb5 {[%clk 0:00:07]} 63. Kd5 {[%clk 0:00:09]}  Kb4 {[%clk 0:00:08]} 64. Nc5 {[%clk 0:00:10]}  Kb5 {[%clk 0:00:08]} 65. Nd3 {[%clk 0:00:09]}  Kb6 {[%clk 0:00:08]} 66. Bd4+ {[%clk 0:00:08]}  Kb5 {[%clk 0:00:08]} 67. Bc5 {[%clk 0:00:08]}  Ka6 {[%clk 0:00:08]} 68. Kc6 {[%clk 0:00:06]}  Ka5 {[%clk 0:00:08]} 69. Nb2 {[%clk 0:00:06]}  Ka6 {[%clk 0:00:09]} 70. Nc4 {[%clk 0:00:07]} 1/2-1/2

[Event "January 2 Late 2024"]
[Site "https://www.chess.com"]
[Date "2024.01.02"]
[Round "5"]
[White "Korchynskyi, Mykola"]
[Black "Lobanov, Sergei"]
[Result "0-1"]
[Board "65"]
[TimeControl "180+1"]
[WhiteFideId "34138005"]
[BlackFideId "24183750"]
[WhiteElo "2583"]
[BlackElo "2833"]
[WhiteTeam "UKR"]
[BlackTeam "FID"]
[WhiteClock "0:00:04"]
[BlackClock "0:00:08"]

1. d4 {[%clk 0:02:54]}  Nf6 {[%clk 0:03:00]} 2. c4 {[%clk 0:02:52]}  e6 {[%clk 0:03:00]} 3. Nc3 {[%clk 0:02:50]}  d5 {[%clk 0:03:00]} 4. Bg5 {[%clk 0:02:44]}  Be7 {[%clk 0:03:00]} 5. cxd5 {[%clk 0:02:44]}  exd5 {[%clk 0:03:01]} 6. e3 {[%clk 0:02:44]}  h6 {[%clk 0:03:01]} 7. Bh4 {[%clk 0:02:44]}  O-O {[%clk 0:03:01]} 8. Nf3 {[%clk 0:02:43]}  c6 {[%clk 0:02:58]} 9. Qc2 {[%clk 0:02:41]}  Re8 {[%clk 0:02:48]} 10. Bd3 {[%clk 0:02:38]}  Ne4 {[%clk 0:02:44]} 11. Bxe7 {[%clk 0:02:35]}  Qxe7 {[%clk 0:02:45]} 12. O-O {[%clk 0:02:36]}  Nd7 {[%clk 0:02:33]} 13. Rfe1 {[%clk 0:02:31]}  h5 {[%clk 0:02:19]} 14. Nd2 {[%clk 0:02:09]}  Ndf6 {[%clk 0:02:12]} 15. f3 {[%clk 0:02:09]}  Nxd2 {[%clk 0:01:40]} 16. Qxd2 {[%clk 0:02:07]}  Be6 {[%clk 0:01:35]} 17. Bc2 {[%clk 0:02:03]}  Rad8 {[%clk 0:01:31]} 18. a3 {[%clk 0:01:58]}  g6 {[%clk 0:01:30]} 19. b4 {[%clk 0:01:58]}  Qd6 {[%clk 0:01:25]} 20. Rac1 {[%clk 0:01:56]}  h4 {[%clk 0:01:24]} 21. Ne2 {[%clk 0:01:52]}  Nh5 {[%clk 0:01:11]} 22. Bb1 {[%clk 0:01:48]}  Bc8 {[%clk 0:01:09]} 23. Nf4 {[%clk 0:01:41]}  Nxf4 {[%clk 0:01:08]} 24. exf4 {[%clk 0:01:42]}  Kg7 {[%clk 0:00:59]} 25. Re5 {[%clk 0:01:31]}  f6 {[%clk 0:00:59]} 26. Ree1 {[%clk 0:01:29]}  Kf7 {[%clk 0:00:42]} 27. f5 {[%clk 0:01:15]}  g5 {[%clk 0:00:37]} 28. Bd3 {[%clk 0:00:57]}  Rxe1+ {[%clk 0:00:32]} 29. Rxe1 {[%clk 0:00:58]}  Re8 {[%clk 0:00:32]} 30. Rxe8 {[%clk 0:00:57]}  Kxe8 {[%clk 0:00:33]} 31. Qe2+ {[%clk 0:00:57]}  Kf7 {[%clk 0:00:30]} 32. h3 {[%clk 0:00:40]}  Qf4 {[%clk 0:00:23]} 33. Qf2 {[%clk 0:00:38]}  Qc1+ {[%clk 0:00:21]} 34. Kh2 {[%clk 0:00:37]}  Qxa3 {[%clk 0:00:20]} 35. Qe2 {[%clk 0:00:31]}  Qxb4 {[%clk 0:00:13]} 36. f4 {[%clk 0:00:21]}  Qd6 {[%clk 0:00:14]} 37. Qh5+ {[%clk 0:00:20]}  Ke7 {[%clk 0:00:15]} 38. Qh7+ {[%clk 0:00:21]}  Kd8 {[%clk 0:00:15]} 39. Qg8+ {[%clk 0:00:10]}  Kc7 {[%clk 0:00:15]} 40. Kh1 {[%clk 0:00:09]}  gxf4 {[%clk 0:00:05]} 41. Qh7+ {[%clk 0:00:07]}  Bd7 {[%clk 0:00:05]} 42. Qxh4 {[%clk 0:00:06]}  a5 {[%clk 0:00:05]} 43. Qe1 {[%clk 0:00:06]}  a4 {[%clk 0:00:05]} 44. Qa5+ {[%clk 0:00:07]}  Kb8 {[%clk 0:00:03]} 45. Qd8+ {[%clk 0:00:06]}  Ka7 {[%clk 0:00:02]} 46. Qa5+ {[%clk 0:00:06]}  Kb8 {[%clk 0:00:03]} 47. Qxa4 {[%clk 0:00:05]}  Qe7 {[%clk 0:00:02]} 48. Qd1 {[%clk 0:00:05]}  Qe3 {[%clk 0:00:02]} 49. Be2 {[%clk 0:00:02]}  Qg3 {[%clk 0:00:02]} 50. Bg4 {[%clk 0:00:02]}  Qe3 {[%clk 0:00:02]} 51. h4 {[%clk 0:00:02]}  Qg3 {[%clk 0:00:02]} 52. h5 {[%clk 0:00:03]}  Qh4+ {[%clk 0:00:02]} 53. Kg1 {[%clk 0:00:03]}  Qg3 {[%clk 0:00:02]} 54. Bh3 {[%clk 0:00:02]}  Qg5 {[%clk 0:00:02]} 55. Qe2 {[%clk 0:00:02]}  Kc7 {[%clk 0:00:02]} 56. Qe7 {[%clk 0:00:02]}  f3 {[%clk 0:00:02]} 57. Qe1 {[%clk 0:00:02]}  fxg2 {[%clk 0:00:03]} 58. Bxg2 {[%clk 0:00:02]}  Qxh5 {[%clk 0:00:03]} 59. Qg3+ {[%clk 0:00:02]}  Kc8 {[%clk 0:00:03]} 60. Qg8+ {[%clk 0:00:03]}  Qe8 {[%clk 0:00:03]} 61. Qg3 {[%clk 0:00:03]}  Qe7 {[%clk 0:00:03]} 62. Qg8+ {[%clk 0:00:03]}  Kc7 {[%clk 0:00:04]} 63. Qg3+ {[%clk 0:00:04]}  Qd6 {[%clk 0:00:04]} 64. Qg7 {[%clk 0:00:04]}  c5 {[%clk 0:00:04]} 65. dxc5 {[%clk 0:00:04]}  Qxc5+ {[%clk 0:00:04]} 66. Kh2 {[%clk 0:00:04]}  Qd6+ {[%clk 0:00:04]} 67. Kg1 {[%clk 0:00:04]}  Qe5 {[%clk 0:00:05]} 68. Bh3 {[%clk 0:00:03]}  Qe3+ {[%clk 0:00:05]} 69. Kh2 {[%clk 0:00:03]}  Qf4+ {[%clk 0:00:05]} 70. Kh1 {[%clk 0:00:03]}  Qe4+ {[%clk 0:00:05]} 71. Kh2 {[%clk 0:00:03]}  Qe5+ {[%clk 0:00:06]} 72. Kh1 {[%clk 0:00:03]}  d4 {[%clk 0:00:07]} 73. Qf7 {[%clk 0:00:02]}  Qe4+ {[%clk 0:00:04]} 74. Kh2 {[%clk 0:00:02]}  Qe5+ {[%clk 0:00:05]} 75. Kg1 {[%clk 0:00:02]}  Kd6 {[%clk 0:00:05]} 76. Qf8+ {[%clk 0:00:02]}  Qe7 {[%clk 0:00:05]} 77. Qh6 {[%clk 0:00:02]}  Qe3+ {[%clk 0:00:05]} 78. Qxe3 {[%clk 0:00:03]}  dxe3 {[%clk 0:00:06]} 79. Kf1 {[%clk 0:00:04]}  Ke5 {[%clk 0:00:06]} 80. Ke2 {[%clk 0:00:04]}  Kd4 {[%clk 0:00:07]} 81. Bg2 {[%clk 0:00:04]}  Bc6 {[%clk 0:00:07]} 82. Bh3 {[%clk 0:00:04]}  Bb5+ {[%clk 0:00:07]} 83. Ke1 {[%clk 0:00:05]}  Ke5 {[%clk 0:00:07]} 84. Bg2 {[%clk 0:00:05]}  Bc6 {[%clk 0:00:07]} 85. Bh3 {[%clk 0:00:06]}  Kf4 {[%clk 0:00:08]} 86. Bf1 {[%clk 0:00:05]}  b5 {[%clk 0:00:08]} 87. Bd3 {[%clk 0:00:06]}  b4 {[%clk 0:00:08]} 88. Ke2 {[%clk 0:00:06]}  Be4 {[%clk 0:00:08]} 89. Bc4 {[%clk 0:00:04]}  Bxf5 {[%clk 0:00:08]} 0-1

[Event "January 2 Late 2024"]
[Site "https://www.chess.com"]
[Date "2024.01.02"]
[Round "5"]
[White "Rastbod, Ali"]
[Black "Cervantes Landeiro, Thalia"]
[Result "1-0"]
[Board "67"]
[TimeControl "180+1"]
[WhiteFideId "12567477"]
[BlackFideId "3520498"]
[WhiteElo "2718"]
[BlackElo "2574"]
[WhiteTeam "IRI"]
[BlackTeam "USA"]
[WhiteClock "0:00:20"]
[BlackClock "0:00:01"]

1. e4 {[%clk 0:02:53]}  c5 {[%clk 0:02:59]} 2. Nc3 {[%clk 0:02:53]}  d6 {[%clk 0:02:58]} 3. g3 {[%clk 0:02:53]}  Nc6 {[%clk 0:02:57]} 4. Bg2 {[%clk 0:02:53]}  g6 {[%clk 0:02:57]} 5. d3 {[%clk 0:02:54]}  Bg7 {[%clk 0:02:58]} 6. Be3 {[%clk 0:02:55]}  e6 {[%clk 0:02:58]} 7. Qd2 {[%clk 0:02:54]}  Nge7 {[%clk 0:02:58]} 8. Bh6 {[%clk 0:02:55]}  Bxh6 {[%clk 0:02:58]} 9. Qxh6 {[%clk 0:02:56]}  Ng8 {[%clk 0:02:59]} 10. Qe3 {[%clk 0:02:40]}  Nf6 {[%clk 0:02:58]} 11. f4 {[%clk 0:02:34]}  O-O {[%clk 0:02:56]} 12. Nf3 {[%clk 0:02:34]}  Rb8 {[%clk 0:02:53]} 13. a4 {[%clk 0:02:23]}  b6 {[%clk 0:02:44]} 14. O-O {[%clk 0:02:23]}  d5 {[%clk 0:02:43]} 15. Qe2 {[%clk 0:02:13]}  d4 {[%clk 0:02:17]} 16. Nd1 {[%clk 0:02:09]}  Bb7 {[%clk 0:02:15]} 17. e5 {[%clk 0:02:01]}  Nd5 {[%clk 0:02:13]} 18. Ng5 {[%clk 0:02:01]}  Nce7 {[%clk 0:02:09]} 19. g4 {[%clk 0:01:51]}  Nb4 {[%clk 0:01:38]} 20. Bxb7 {[%clk 0:01:37]}  Rxb7 {[%clk 0:01:38]} 21. Ne4 {[%clk 0:01:37]}  Nbd5 {[%clk 0:01:32]} 22. c4 {[%clk 0:01:09]}  dxc3 {[%clk 0:01:26]} 23. bxc3 {[%clk 0:01:10]}  Kg7 {[%clk 0:00:57]} 24. Kg2 {[%clk 0:00:58]}  Rd7 {[%clk 0:00:45]} 25. Rf3 {[%clk 0:00:56]}  f5 {[%clk 0:00:35]} 26. exf6+ {[%clk 0:00:53]}  Nxf6 {[%clk 0:00:35]} 27. Ng5 {[%clk 0:00:54]}  Rd6 {[%clk 0:00:12]} 28. Nxe6+ {[%clk 0:00:42]}  Rxe6 {[%clk 0:00:13]} 29. Qxe6 {[%clk 0:00:42]}  Nfd5 {[%clk 0:00:14]} 30. Qe5+ {[%clk 0:00:40]}  Kg8 {[%clk 0:00:14]} 31. Ne3 {[%clk 0:00:35]}  Nf6 {[%clk 0:00:12]} 32. Nc4 {[%clk 0:00:28]}  Qd7 {[%clk 0:00:11]} 33. h3 {[%clk 0:00:25]}  Nc6 {[%clk 0:00:10]} 34. Qe1 {[%clk 0:00:26]}  Re8 {[%clk 0:00:10]} 35. Re3 {[%clk 0:00:25]}  Rf8 {[%clk 0:00:06]} 36. Kg3 {[%clk 0:00:22]}  Nd5 {[%clk 0:00:05]} 37. Rf3 {[%clk 0:00:20]}  Qc7 {[%clk 0:00:05]} 38. Ne5 {[%clk 0:00:20]}  Nf6 {[%clk 0:00:01]} 39. Qe2 {[%clk 0:00:17]}  Nd5 {[%clk 0:00:01]} 40. Re1 {[%clk 0:00:16]}  Nce7 {[%clk 0:00:02]} 41. c4 {[%clk 0:00:16]}  Nb4 {[%clk 0:00:02]} 42. Kg2 {[%clk 0:00:17]}  Nec6 {[%clk 0:00:01]} 43. Nxc6 {[%clk 0:00:17]}  Qxc6 {[%clk 0:00:02]} 44. Qe4 {[%clk 0:00:17]}  Qc7 {[%clk 0:00:02]} 45. Qe6+ {[%clk 0:00:18]}  Kh8 {[%clk 0:00:02]} 46. Qe5+ {[%clk 0:00:18]}  Qxe5 {[%clk 0:00:03]} 47. fxe5 {[%clk 0:00:19]}  Rd8 {[%clk 0:00:03]} 48. e6 {[%clk 0:00:19]}  Nxd3 {[%clk 0:00:02]} 49. Rxd3 {[%clk 0:00:19]}  Rxd3 {[%clk 0:00:01]} 50. e7 {[%clk 0:00:20]} 1-0

[Event "January 2 Late 2024"]
[Site "https://www.chess.com"]
[Date "2024.01.02"]
[Round "5"]
[White "Tabuenca Mendataurigoitia, Daniel"]
[Black "Bardyk, Artem"]
[Result "0-1"]
[Board "68"]
[TimeControl "180+1"]
[WhiteFideId "24563617"]
[BlackFideId "34349979"]
[WhiteElo "2532"]
[BlackElo "2717"]
[WhiteTeam "ESP"]
[BlackTeam "RUS"]
[WhiteClock "0:00:00"]
[BlackClock "0:00:48"]

1. Nf3 {[%clk 0:03:00]}  d5 {[%clk 0:03:00]} 2. g3 {[%clk 0:03:00]}  Nc6 {[%clk 0:03:00]} 3. d4 {[%clk 0:02:56]}  Bf5 {[%clk 0:02:59]} 4. c4 {[%clk 0:02:48]}  e6 {[%clk 0:02:56]} 5. cxd5 {[%clk 0:02:47]}  exd5 {[%clk 0:02:56]} 6. a3 {[%clk 0:02:47]}  Nf6 {[%clk 0:02:55]} 7. Nc3 {[%clk 0:02:47]}  Be7 {[%clk 0:02:52]} 8. Bg2 {[%clk 0:02:47]}  O-O {[%clk 0:02:49]} 9. O-O {[%clk 0:02:47]}  Ne4 {[%clk 0:02:49]} 10. Qb3 {[%clk 0:02:27]}  Rb8 {[%clk 0:02:30]} 11. Nxd5 {[%clk 0:02:19]}  Be6 {[%clk 0:02:25]} 12. Nxe7+ {[%clk 0:02:19]}  Nxe7 {[%clk 0:02:26]} 13. Qc2 {[%clk 0:02:13]}  Bd5 {[%clk 0:02:25]} 14. Ne5 {[%clk 0:02:06]}  Nf6 {[%clk 0:02:18]} 15. e4 {[%clk 0:02:04]}  Be6 {[%clk 0:02:18]} 16. d5 {[%clk 0:02:05]}  Bc8 {[%clk 0:02:09]} 17. Bg5 {[%clk 0:02:03]}  Re8 {[%clk 0:02:03]} 18. Bxf6 {[%clk 0:01:47]}  gxf6 {[%clk 0:02:04]} 19. Nd3 {[%clk 0:01:42]}  Ng6 {[%clk 0:02:03]} 20. Rac1 {[%clk 0:01:40]}  c6 {[%clk 0:02:03]} 21. Nb4 {[%clk 0:01:08]}  cxd5 {[%clk 0:01:51]} 22. Nxd5 {[%clk 0:00:53]}  Be6 {[%clk 0:01:51]} 23. Rfd1 {[%clk 0:00:53]}  Bxd5 {[%clk 0:01:50]} 24. Rxd5 {[%clk 0:00:49]}  Qb6 {[%clk 0:01:50]} 25. b4 {[%clk 0:00:36]}  Kg7 {[%clk 0:01:36]} 26. h4 {[%clk 0:00:35]}  Rbc8 {[%clk 0:01:25]} 27. Qxc8 {[%clk 0:00:34]}  Rxc8 {[%clk 0:01:26]} 28. Rxc8 {[%clk 0:00:34]}  Ne7 {[%clk 0:01:27]} 29. Rcd8 {[%clk 0:00:28]}  Nxd5 {[%clk 0:01:26]} 30. Rxd5 {[%clk 0:00:29]}  Qc7 {[%clk 0:01:21]} 31. Bh3 {[%clk 0:00:15]}  Qc1+ {[%clk 0:01:20]} 32. Kg2 {[%clk 0:00:15]}  Qxa3 {[%clk 0:01:20]} 33. b5 {[%clk 0:00:12]}  Qb4 {[%clk 0:01:16]} 34. Bf5 {[%clk 0:00:11]}  a5 {[%clk 0:01:16]} 35. bxa6 {[%clk 0:00:11]}  bxa6 {[%clk 0:01:17]} 36. h5 {[%clk 0:00:12]}  a5 {[%clk 0:01:10]} 37. Rd7 {[%clk 0:00:12]}  Qc4 {[%clk 0:00:56]} 38. Ra7 {[%clk 0:00:07]}  a4 {[%clk 0:00:56]} 39. g4 {[%clk 0:00:05]}  Qb3 {[%clk 0:00:50]} 40. f3 {[%clk 0:00:03]}  a3 {[%clk 0:00:50]} 41. Kg3 {[%clk 0:00:00]}  Qb8+ {[%clk 0:00:48]} 0-1